bitfinex/quotes_ETHUSD_20241120
["timestamp","ask_amount","ask_price","bid_price","bid_amount"]
[1732108863208,0.8125,3112.2,3111.1,0.7813]
[1732108863209,0.8125,3112.2,3111.8,3.21348]
[1732108863350,0.55,3112.1,3111.8,3.21348]
[1732108863550,0.55,3112.1,3111.9,3.21346]
[1732108863810,0.55,3112.1,3112.0,3.21336]
[1732108865380,0.55,3112.1,3111.8,3.21354]
[1732108865578,0.55,3112.1,3111.9,3.21344]
[1732108865750,0.55,3112.1,3112.0,3.21336]
[1732108865952,0.8231,3112.7,3112.0,3.21336]
[1732108866225,3.90965998,3113.2,3112.6,3.21274]
[1732108866354,0.8231,3112.8,3112.7,3.21264]
[1732108867095,0.8231,3112.8,3112.7,2.9616525]
[1732108867656,0.8231,3112.8,3112.7,2.41104253]
[1732108867854,0.8231,3112.8,3112.5,3.21283]
[1732108868054,0.8231,3112.8,3112.6,3.21274]
[1732108868285,0.8231,3112.8,3111.7,3.21367]
[1732108868495,0.8231,3112.8,3112.3,3.21302]
[1732108868675,0.55,3112.7,3112.1,3.21321]
[1732108868852,0.55,3112.7,3111.5,0.8005]
[1732108869165,3.21279,3112.6,3111.9,3.21344]
[1732108869502,3.21279,3112.6,3111.6,3.21375]
[1732108869503,0.926279,3112.5,3111.7,3.21362]
[1732108869660,0.926279,3112.5,3111.8,3.21356]
[1732108869861,0.55,3112.3,3111.8,3.21356]
[1732108870182,0.55,3112.6,3111.1,0.8071]
[1732108870393,1.01529013,3112.7,3111.2,0.01]
[1732108870555,0.8231,3112.8,3111.4,3.21398]
[1732108870761,0.8231,3112.8,3112.5,3.21275]
[1732108871068,0.8231,3112.8,3112.3,3.21297]
[1732108871599,0.8231,3112.8,3111.3,0.7783]
[1732108871600,4.63290133,3112.8,3111.3,0.7783]
[1732108871815,0.55,3112.6,3111.9,3.21337]
[1732108871954,0.55,3112.6,3111.7,3.21365]
[1732108871955,0.8072,3112.5,3111.7,3.21365]
[1732108872160,0.55,3112.3,3111.7,3.21365]
[1732108872768,3.76311,3112.3,3111.5,3.21388]
[1732108873015,3.76311,3112.3,3111.6,3.21377]
[1732108873159,0.55,3112.1,3111.6,3.21377]
[1732108873361,0.55,3112.1,3111.7,3.21364]
[1732108874003,0.55,3112.1,3111.8,3.21352]
[1732108874202,1.182266,3112.4,3112.0,3.21336]
[1732108874203,0.55,3112.3,3112.0,3.21336]
[1732108874424,0.55,3112.3,3112.1,3.21325]
[1732108874563,0.55,3112.3,3111.2,3.21412]
[1732108874758,0.55,3112.3,3110.8,0.01]
[1732108874759,0.55,3112.1,3111.9,3.21336]
[1732108874964,0.55,3112.1,3110.6,6.2148]
[1732108874965,0.55,3112.1,3110.4,0.02]
[1732108875222,3.21364,3111.8,3111.1,3.21429]
[1732108875381,0.7553,3112.0,3110.9,3.21448]
[1732108875382,3.21393,3111.5,3110.9,3.21448]
[1732108875706,0.321393,3111.4,3111.0,3.21438]
[1732108875889,3.76368,3111.7,3111.1,3.21427]
[1732108876065,0.55,3111.7,3111.3,3.21406]
[1732108876266,3.76364,3111.8,3111.1,3.21429]
[1732108876464,3.76364,3111.8,3111.2,3.21417]
[1732108876801,0.55,3111.6,3111.0,3.21431]
[1732108877409,3.76378,3111.6,3110.9,3.2144]
[1732108877604,3.76378,3111.6,3110.4,0.7777]
[1732108877605,0.55,3111.4,3111.0,3.21434]
[1732108877908,0.18647308,3111.3,3111.2,3.21419]
[1732108878120,0.55,3111.6,3111.2,3.21419]
[1732108878296,1.651628,3111.7,3111.6,3.21378]
[1732108878463,0.7671,3111.8,3111.1,0.8236]
[1732108878664,0.7671,3111.8,3111.2,3.21411]
[1732108878888,0.7671,3111.8,3111.4,3.21392]
[1732108879525,0.7671,3111.8,3110.6,3.0]
[1732108879526,0.7671,3111.8,3110.7,0.7878]
[1732108879727,0.55,3111.6,3111.0,3.21439]
[1732108879931,0.55,3111.4,3110.8,3.21452]
[1732108880084,0.376394,3111.3,3110.8,3.21452]
[1732108880287,3.76399,3111.4,3110.9,3.21449]
[1732108880928,3.21379,3111.6,3111.0,3.21432]
[1732108880929,0.55,3111.5,3111.0,3.21432]
[1732108881086,0.55,3111.5,3110.8,3.21455]
[1732108881087,4.085269,3111.5,3110.8,3.21455]
[1732108881287,4.085269,3111.5,3110.9,3.21446]
[1732108881483,0.7299059,3111.4,3110.9,3.21446]
[1732108881784,3.21427,3111.2,3110.5,3.21484]
[1732108881983,0.55,3111.1,3110.5,3.21484]
[1732108882184,0.55,3110.9,3110.5,3.21484]
[1732108882490,0.55,3110.9,3110.3,3.21507]
[1732108882491,3.21457,3110.9,3110.3,3.21507]
[1732108882685,0.8325,3110.6,3109.9,6.43096]
[1732108883029,0.8325,3110.6,3109.9,3.21547]
[1732108883030,3.76491,3110.5,3109.9,3.21547]
[1732108883246,0.459741,3110.4,3109.9,3.21547]
[1732108883381,0.459741,3110.4,3109.8,3.21556]
[1732108883586,3.21523,3110.2,3109.6,3.21578]
[1732108884023,3.21523,3110.2,3109.5,3.21589]
[1732108884208,3.21523,3110.2,3109.7,3.2157]
[1732108884528,0.55,3110.1,3109.4,3.21605]
[1732108884744,0.55,3110.1,3109.2,3.2162]
[1732108884745,3.76559,3109.9,3109.2,3.2162]
[1732108885194,0.55,3109.7,3109.1,3.2163]
[1732108885397,0.55,3109.7,3109.1,3.21628]
[1732108885582,0.926571,3109.7,3109.2,3.21624]
[1732108885786,0.926571,3109.7,3108.8,0.8216]
[1732108886144,0.55,3109.8,3109.6,3.21584]
[1732108886291,0.7611,3110.3,3109.1,3.2163]
[1732108886628,3.21483,3110.6,3109.9,3.21548]
[1732108886836,0.7611,3110.0,3108.9,0.403833]
[1732108887133,0.7611,3110.0,3108.7,0.786]
[1732108887134,3.21564,3109.8,3109.2,3.21622]
[1732108887426,3.21564,3109.8,3108.7,0.786]
[1732108887427,3.21589,3109.6,3108.8,3.21666]
[1732108887644,0.7611,3109.5,3109.0,3.21645]
[1732108887824,0.7611,3109.5,3108.8,3.21666]
[1732108887825,0.55,3109.4,3109.1,3.21634]
[1732108887984,0.55,3109.4,3108.8,3.21661]
[1732108887985,0.55,3109.4,3108.9,3.21651]
[1732108888188,3.21569,3109.8,3108.7,0.786]
[1732108888189,0.8276,3109.8,3108.7,4.59580133]
[1732108888484,0.55,3110.1,3109.0,0.815]
[1732108888724,7.5902835,3110.8,3109.0,0.815]
[1732108888725,0.8276,3110.5,3109.8,3.21555]
[1732108888928,0.8276,3110.5,3110.0,3.21542]
[1732108889089,0.8276,3110.5,3110.0,3.21541]
[1732108889433,0.8276,3110.5,3110.2,3.21521]
[1732108889594,0.8276,3110.5,3110.0,3.21541]
[1732108889595,1.34583785,3110.5,3110.0,3.21541]
[1732108889782,0.55,3110.4,3109.9,3.21544]
[1732108889983,0.55,3110.4,3110.0,3.21537]
[1732108890431,1.06107079,3110.4,3110.0,3.21537]
[1732108890888,1.34583785,3110.5,3110.3,3.21512]
[1732108891087,0.8276,3110.5,3110.3,3.21512]
[1732108891539,0.8276,3110.5,3110.2,3.21519]
[1732108892120,0.8276,3110.5,3110.1,3.21529]
[1732108892436,0.8276,3110.5,3110.2,3.21521]
[1732108892617,0.55,3110.4,3110.1,3.21529]
[1732108892801,1.009242,3110.4,3110.1,3.21529]
[1732108893133,0.55,3110.4,3110.0,3.21541]
[1732108894537,0.55,3110.4,3110.2,3.21515]
[1732108894737,0.8276,3110.5,3110.2,3.21515]
[1732108894738,1.3776,3110.5,3110.2,3.21515]
[1732108894937,1.3776,3110.5,3110.1,3.21531]
[1732108895141,1.62936085,3110.5,3110.1,3.21531]
[1732108895358,0.55,3110.4,3108.9,3.0]
[1732108895558,0.55,3110.1,3109.0,0.8207]
[1732108895860,3.76553,3109.9,3109.4,3.21604]
[1732108896017,3.21565,3109.8,3109.2,3.21618]
[1732108896217,0.926565,3109.7,3109.0,3.21638]
[1732108896453,4.142325,3109.7,3109.2,3.21624]
[1732108896766,0.7568,3109.3,3108.8,3.21659]
[1732108897375,0.7568,3109.3,3108.6,3.21686]
[1732108897376,0.55,3109.0,3108.6,3.21679]
[1732108897660,0.947286,3109.2,3108.8,3.21658]
[1732108897820,0.7568,3109.3,3108.3,3.21719]
[1732108898021,0.7568,3109.3,3109.2,3.21626]
[1732108898307,7.25264,3109.4,3109.0,4.04]
[1732108898469,0.55,3109.3,3109.1,3.21627]
[1732108898763,7.977904,3109.4,3109.1,3.21627]
[1732108898925,7.977904,3109.4,3109.1,3.21635]
[1732108899472,7.25264,3109.4,3109.3,3.21615]
[1732108899622,3.21582,3109.7,3109.1,3.21631]
[1732108899829,0.55,3109.5,3109.1,3.21631]
[1732108900020,0.55,3109.5,3109.0,3.21646]
[1732108900237,0.55,3109.3,3109.0,3.21646]
[1732108900588,0.55,3109.3,3108.9,3.2165]
[1732108901456,0.55,3109.3,3108.9,6.433]
[1732108901643,0.55,3109.3,3108.9,3.2165]
[1732108901841,0.55,3109.3,3109.0,3.21637]
[1732108902442,0.55,3109.3,3108.8,6.43325]
[1732108902787,0.55,3109.3,3108.8,3.21658]
[1732108902941,4.218427,3109.3,3108.6,3.2168]
[1732108903143,3.21628,3109.2,3108.6,3.2168]
[1732108903367,3.21643,3109.1,3107.9,0.7824]
[1732108903697,0.55,3109.3,3107.9,0.7824]
[1732108903698,0.7986,3108.7,3108.2,3.21723]
[1732108903903,3.76696,3108.6,3108.0,3.2175]
[1732108904200,0.7986,3108.0,3107.4,3.21809]
[1732108904485,0.7986,3108.0,3107.3,3.21818]
[1732108904486,3.21762,3107.9,3107.3,3.21818]
[1732108904694,0.951622,3107.8,3107.3,3.21818]
[1732108905044,0.951622,3107.8,3107.0,3.21853]
[1732108905252,0.55,3107.9,3106.9,0.7834]
[1732108905581,7.80264,3107.9,3107.1,3.21843]
[1732108905739,0.55,3107.6,3107.1,3.21843]
[1732108905938,0.55,3107.7,3107.1,3.21843]
[1732108906780,0.55,3107.5,3107.0,3.21845]
[1732108906941,0.55,3107.5,3107.1,3.21842]
[1732108907286,0.97306234,3107.5,3107.2,3.21824]
[1732108907483,0.55,3107.7,3107.2,3.21832]
[1732108907792,0.55,3107.7,3107.4,3.21804]
[1732108908300,7.25264,3107.9,3107.6,3.21791]
[1732108908584,0.55,3107.8,3107.4,3.2181]
[1732108908760,0.55,3107.8,3107.3,3.21821]
[1732108908957,0.55,3107.8,3107.2,3.21832]
[1732108908958,0.55,3107.6,3107.2,3.21832]
[1732108909178,0.55,3107.6,3107.0,3.21851]
[1732108909491,0.55,3107.4,3106.9,3.21862]
[1732108909704,1.3565,3107.0,3106.4,3.21908]
[1732108909887,3.80980133,3106.9,3106.2,3.21927]
[1732108910200,3.76885,3106.7,3105.4,0.8057]
[1732108910418,7.25264,3106.6,3106.2,3.21936]
[1732108910564,7.80264,3106.5,3106.1,3.21939]
[1732108910761,7.25264,3106.5,3106.2,3.21929]
[1732108911068,6.65422657,3106.5,3106.4,3.21916]
[1732108912286,7.20422657,3106.5,3106.0,3.21955]
[1732108912496,0.55,3106.4,3106.0,3.21955]
[1732108912808,0.7961,3106.3,3106.0,3.21955]
[1732108912990,0.55,3106.2,3105.7,3.21984]
[1732108913196,0.55,3106.2,3105.9,3.21961]
[1732108913366,0.55,3106.2,3105.5,3.22009]
[1732108913562,0.55,3106.2,3106.0,3.21954]
[1732108913767,0.55,3106.2,3105.7,3.21985]
[1732108914068,3.76939,3106.2,3105.5,3.22]
[1732108914264,3.21976,3105.9,3105.3,3.2203]
[1732108914470,0.7961,3105.8,3105.1,3.22044]
[1732108914670,0.723563,3105.7,3105.3,3.22027]
[1732108914909,0.723563,3105.7,3105.1,3.22044]
[1732108915207,0.55,3105.6,3105.1,3.22044]
[1732108915408,10.42423657,3105.6,3104.9,3.22063]
[1732108915566,0.4493503,3105.5,3104.9,3.22063]
[1732108915762,0.4493503,3105.5,3105.0,3.22059]
[1732108915763,0.55,3105.4,3105.0,3.22059]
[1732108916005,0.55,3105.2,3104.6,3.22101]
[1732108916211,0.55,3105.0,3104.6,3.22101]
[1732108916933,0.55,3105.5,3105.1,3.2205]
[1732108917213,0.8073,3105.7,3105.3,3.22022]
[1732108917421,0.8073,3105.7,3105.4,3.22019]
[1732108917598,0.8073,3105.7,3105.5,3.22009]
[1732108917802,0.8071,3106.1,3105.5,3.22009]
[1732108918367,7.20422657,3105.6,3105.3,3.22022]
[1732108918807,7.20422657,3105.6,3105.1,3.2205]
[1732108918970,9.87386657,3106.0,3105.3,3.22028]
[1732108919171,9.87386657,3106.0,3101.7,14.3189165]
[1732108919172,0.8192,3105.6,3103.9,0.7814]
[1732108919376,3.0,3105.0,3104.9,3.22071]
[1732108919588,0.55,3105.1,3104.8,3.22075]
[1732108919934,0.55,3105.1,3105.0,3.22061]
[1732108920424,6.65422657,3105.2,3105.1,3.2205]
[1732108920794,0.55,3105.5,3105.4,3.22019]
[1732108920980,7.47762657,3105.9,3105.4,3.22019]
[1732108921179,2.04690447,3105.9,3105.4,3.22019]
[1732108921386,0.8234,3106.2,3105.6,3.21993]
[1732108921626,4.04279,3106.2,3105.7,3.21988]
[1732108921809,0.404279,3106.1,3105.6,3.21993]
[1732108922013,9.87342657,3106.4,3104.6,3.8029]
[1732108922014,6.65422657,3106.4,3106.2,3.21936]
[1732108922226,0.8006,3106.6,3105.6,3.21998]
[1732108922413,3.21872,3106.9,3106.2,3.21933]
[1732108922626,3.21892,3106.7,3106.0,3.21949]
[1732108922910,0.401932,3106.8,3106.4,3.21914]
[1732108923116,0.8006,3107.0,3106.7,3.21878]
[1732108923280,0.7997,3106.7,3106.2,3.21935]
[1732108923485,3.21913,3106.5,3105.9,3.21967]
[1732108923711,0.78283113,3106.6,3105.2,3.0]
[1732108923892,0.78283113,3106.6,3106.1,3.21942]
[1732108924537,0.78283113,3106.6,3105.9,3.21964]
[1732108924538,0.55,3106.5,3105.9,3.21964]
[1732108924735,0.55,3106.2,3105.6,3.21991]
[1732108924887,0.55,3106.2,3105.0,3.8321]
[1732108925088,3.21981,3105.8,3105.0,4.05266]
[1732108925291,0.321981,3105.7,3105.0,4.05266]
[1732108925600,0.321981,3105.7,3105.2,3.2204]
[1732108925926,0.55,3105.6,3105.4,3.22013]
[1732108926426,4.03819,3106.0,3105.2,3.22034]
[1732108926427,0.55,3105.9,3105.5,3.22009]
[1732108927036,0.55,3105.9,3105.2,3.22035]
[1732108927355,0.55,3105.9,3105.0,0.8321]
[1732108927356,0.55,3105.7,3105.3,3.22023]
[1732108927487,1.14793137,3105.9,3105.4,3.22017]
[1732108927686,0.55,3105.9,3105.5,3.22002]
[1732108927931,3.76968,3105.9,3105.3,3.22027]
[1732108928230,0.55,3105.7,3105.0,0.8321]
[1732108928433,0.55,3105.3,3104.6,3.99777]
[1732108928647,1.731716,3105.3,3104.6,3.99777]
[1732108928936,3.22073,3104.9,3104.4,3.2212]
[1732108929245,0.55,3104.8,3104.0,0.763]
[1732108929404,0.55,3104.4,3103.6,0.763]
[1732108929750,0.55,3104.6,3103.6,0.763]
[1732108930036,0.55,3104.6,3104.3,3.22123]
[1732108930342,0.55,3104.6,3104.1,3.22152]
[1732108930797,3.2213,3104.4,3103.8,3.22184]
[1732108931004,0.87213,3104.3,3103.5,3.2221]
[1732108931184,0.55,3104.2,3103.6,3.22198]
[1732108931386,0.55,3104.2,3103.7,3.22191]
[1732108931787,3.77145,3104.2,3103.5,6.44421]
[1732108931993,3.22162,3104.1,3103.5,3.22208]
[1732108932215,0.927135,3104.2,3103.1,3.22254]
[1732108932216,1.3148,3104.0,3103.1,3.22254]
[1732108932452,0.55,3103.8,3103.4,3.22226]
[1732108932607,0.55,3103.8,3103.5,3.22215]
[1732108932804,0.55,3103.8,3103.4,3.2222]
[1732108933004,1.34690266,3103.8,3103.3,3.22229]
[1732108933427,1.34690266,3103.8,3103.4,3.22226]
[1732108933848,1.34690266,3103.8,3103.2,3.2224]
[1732108934024,4.34432792,3103.7,3103.0,3.22261]
[1732108934354,4.34432792,3103.7,3102.7,3.22298]
[1732108934355,3.22225,3103.5,3102.7,3.22298]
[1732108934567,3.22267,3103.1,3102.4,4.511095]
[1732108934849,0.7699,3103.3,3102.5,3.22319]
[1732108935004,0.7699,3103.3,3102.4,4.511125]
[1732108935349,3.2229,3102.8,3102.4,1.287835]
[1732108935518,1.376,3102.8,3102.4,1.287835]
[1732108935731,3.22307,3102.7,3102.4,1.287835]
[1732108936034,0.826,3102.2,3101.7,0.1389165]
[1732108936250,3.77372,3102.1,3101.7,0.1389165]
[1732108936426,4.59993,3101.8,3101.7,0.1389165]
[1732108936603,5.059923,3101.8,3101.7,0.1389165]
[1732108936808,8.059923,3101.8,3101.7,0.1389165]
[1732108937109,1.376,3101.8,3101.7,0.1389165]
[1732108938258,0.55,3101.8,3101.7,0.1389165]
[1732108938439,0.55,3102.1,3101.9,3.22381]
[1732108938825,0.55,3102.1,3102.0,3.22372]
[1732108939025,0.789,3102.7,3102.3,3.22333]
[1732108939222,0.789,3102.7,3101.8,3.22393]
[1732108939223,0.789,3102.7,3102.4,3.2233]
[1732108939423,0.789,3102.7,3101.8,1.12708465]
[1732108939656,0.789,3102.7,3101.9,3.22383]
[1732108939825,0.789,3102.7,3102.0,3.22372]
[1732108940025,6.65422657,3102.8,3101.8,0.7908]
[1732108940267,6.65422657,3102.8,3102.5,3.22315]
[1732108940446,6.65422657,3102.8,3102.7,3.22299]
[1732108940959,6.65422657,3103.3,3102.6,3.22301]
[1732108941157,6.65422657,3103.3,3103.2,3.22248]
[1732108941363,6.65422657,3103.5,3103.1,3.22251]
[1732108941571,7.39467923,3103.5,3102.8,3.22281]
[1732108941856,7.39467923,3103.5,3101.8,7.01471]
[1732108941857,7.39467923,3103.5,3103.1,3.22257]
[1732108942038,6.65422657,3103.5,3103.1,3.22257]
[1732108942428,6.65422657,3103.5,3102.9,3.22277]
[1732108942634,6.65422657,3103.5,3102.7,3.22297]
[1732108942953,0.7503,3103.6,3103.0,3.22264]
[1732108943282,4.369647,3103.6,3102.8,6.4457]
[1732108943425,3.22217,3103.5,3102.8,3.22282]
[1732108943767,3.22217,3103.5,3102.6,3.22308]
[1732108943768,3.22245,3103.3,3102.6,3.22308]
[1732108943945,9.65422657,3103.2,3102.4,3.22328]
[1732108944147,3.98856,3102.9,3102.3,3.2234]
[1732108944460,3.98856,3102.9,3102.4,3.22324]
[1732108944461,0.55,3102.8,3102.4,3.22324]
[1732108945259,0.55,3102.8,3102.3,3.22334]
[1732108946015,7.65807557,3102.8,3102.1,3.22355]
[1732108946217,3.2232,3102.5,3101.9,3.22382]
[1732108946532,0.55,3102.3,3101.9,3.22382]
[1732108946854,0.55,3102.3,3102.2,3.22351]
[1732108947020,6.65422657,3102.6,3102.5,3.2232]
[1732108947468,6.65422657,3103.2,3102.9,3.22276]
[1732108948072,6.65422657,3103.2,3103.1,3.22258]
[1732108948282,6.65422657,3104.1,3103.7,3.22189]
[1732108948486,6.65422657,3104.1,3102.9,0.644575]
[1732108948487,0.7749,3104.2,3104.0,3.22162]
[1732108948831,3.98504,3104.6,3104.0,3.22162]
[1732108949157,0.764,3104.6,3104.3,3.22133]
[1732108949327,0.764,3104.6,3104.4,3.22114]
[1732108949523,0.764,3104.6,3103.8,3.22178]
[1732108949524,6.65422657,3104.9,3104.6,3.22101]
[1732108949727,7.64170323,3104.9,3104.6,3.22101]
[1732108949926,7.64170323,3104.9,3103.8,0.7932]
[1732108950158,3.22114,3104.5,3103.9,3.22174]
[1732108950375,3.22092,3104.7,3104.1,3.22153]
[1732108950672,0.39850903,3104.6,3103.8,3.22175]
[1732108950931,3.22099,3104.7,3104.0,3.22163]
[1732108951085,0.72060103,3104.6,3104.1,3.22153]
[1732108951384,0.72060103,3104.6,3104.4,3.22122]
[1732108951587,0.76417032,3104.8,3104.5,3.22113]
[1732108951877,0.76417032,3104.8,3104.7,3.22092]
[1732108952039,3.788,3105.1,3103.6,3.22206]
[1732108952040,0.788,3105.1,3104.2,3.22139]
[1732108952236,0.769,3105.5,3105.0,3.22061]
[1732108952440,0.769,3105.5,3104.7,3.22092]
[1732108952441,6.65422657,3105.5,3104.7,3.22092]
[1732108952667,0.66542266,3105.4,3105.3,3.2203]
[1732108952882,0.66542266,3105.4,3105.2,3.22032]
[1732108953239,0.7722,3105.9,3105.4,3.22019]
[1732108953437,6.65422657,3106.0,3105.6,3.21991]
[1732108953746,6.65422657,3106.2,3106.0,3.21951]
[1732108953942,0.7722,3106.3,3105.8,3.21977]
[1732108954342,9.87335657,3106.5,3105.8,3.21968]
[1732108954343,6.65422657,3106.5,3105.8,3.21968]
[1732108954545,0.98733566,3106.4,3106.1,3.21946]
[1732108954760,0.76415622,3106.3,3105.9,3.21965]
[1732108954959,0.76415622,3106.3,3106.1,3.21938]
[1732108955606,3.99108,3106.7,3106.1,3.21938]
[1732108955768,0.7722,3106.7,3106.1,3.21938]
[1732108955971,0.7722,3106.7,3106.3,3.21918]
[1732108956192,6.65422657,3106.8,3106.5,3.21905]
[1732108956399,0.8061,3107.2,3106.7,3.21884]
[1732108956711,0.402433,3107.1,3106.7,3.21881]
[1732108956917,0.402433,3107.1,3106.8,3.21873]
[1732108957057,0.402433,3107.1,3106.1,0.7875]
[1732108957267,3.620893,3107.1,3106.4,3.21909]
[1732108957573,3.620893,3107.1,3106.2,3.21936]
[1732108957574,4.02111,3106.9,3106.2,3.21935]
[1732108957782,4.02109,3106.9,3106.0,3.21955]
[1732108957997,3.21891,3106.7,3106.0,3.21955]
[1732108958299,0.98831793,3106.8,3106.4,3.21914]
[1732108958658,0.98831793,3106.8,3106.5,3.21905]
[1732108958859,0.84449445,3106.7,3106.5,3.21905]
[1732108959689,0.84449445,3106.7,3106.6,3.21895]
[1732108960002,1.39449445,3106.7,3106.6,3.21895]
[1732108960304,6.65422657,3106.9,3106.8,3.21874]
[1732108960521,9.87175657,3108.0,3107.3,3.21822]
[1732108960799,9.87175657,3108.0,3107.3,3.21817]
[1732108960800,3.21753,3108.0,3107.3,3.21817]
[1732108961016,3.21772,3107.8,3107.1,3.21841]
[1732108961362,3.21772,3107.8,3107.2,3.21832]
[1732108961564,0.321772,3107.7,3106.5,3.21899]
[1732108961818,9.87175657,3108.0,3107.3,3.21816]
[1732108961964,0.98717566,3107.9,3107.3,3.21816]
[1732108962299,0.98717566,3107.9,3106.7,3.21877]
[1732108962504,3.21811,3107.5,3106.7,3.21881]
[1732108962709,3.21839,3107.2,3106.6,3.21892]
[1732108963002,3.2186,3107.0,3106.0,3.98236]
[1732108963203,3.21881,3106.8,3106.2,3.21933]
[1732108963439,3.2186,3107.0,3106.2,3.21933]
[1732108963572,0.55,3106.7,3106.2,3.21933]
[1732108963778,3.76875,3106.8,3106.2,3.21933]
[1732108963981,3.21891,3106.7,3106.0,3.98236]
[1732108964278,0.55,3106.4,3105.6,3.21996]
[1732108964607,0.55,3106.4,3105.8,3.21977]
[1732108964973,0.55,3106.4,3106.0,3.21956]
[1732108965302,0.55,3106.7,3106.3,3.2192]
[1732108965513,0.55,3106.5,3106.2,3.21935]
[1732108965691,0.55,3106.5,3105.8,3.21978]
[1732108965864,0.55,3106.5,3106.2,3.21935]
[1732108966064,0.55,3106.6,3106.2,3.21935]
[1732108966293,3.21902,3106.6,3106.0,3.21947]
[1732108966489,0.55,3106.6,3106.0,3.21947]
[1732108966699,3.2192,3106.4,3105.5,0.7628]
[1732108966909,0.55,3106.4,3105.4,3.2201]
[1732108967126,0.376891,3106.5,3105.2,3.22037]
[1732108967127,3.21975,3105.9,3105.2,3.22037]
[1732108967277,3.21975,3105.9,3105.0,3.22057]
[1732108967278,0.55,3105.8,3105.0,3.22057]
[1732108967477,3.22008,3105.6,3105.0,3.22057]
[1732108967686,0.55,3105.5,3105.0,3.22057]
[1732108967993,3.22015,3105.5,3104.9,3.22067]
[1732108968306,0.927015,3105.4,3104.9,3.22067]
[1732108968491,0.55,3105.4,3104.9,3.22067]
[1732108968693,3.21982,3105.8,3104.7,0.7712]
[1732108968694,0.55,3105.7,3104.7,0.7712]
[1732108968897,3.22047,3105.2,3104.2,6.4428]
[1732108969216,3.22063,3105.0,3104.3,3.22126]
[1732108969424,3.77078,3104.9,3104.1,3.99266]
[1732108969567,1.249141,3104.9,3104.3,3.22123]
[1732108969801,0.55,3104.9,3104.3,3.22123]
[1732108970201,0.322047,3105.1,3104.6,3.221]
[1732108970502,10.63213657,3105.4,3104.1,0.7712]
[1732108970503,0.55,3105.0,3104.9,3.22071]
[1732108970748,0.55,3105.3,3104.7,3.22091]
[1732108971037,1.29119266,3105.3,3104.6,3.22094]
[1732108971239,3.22051,3105.1,3104.5,3.22111]
[1732108971442,3.22051,3105.1,3104.1,0.7712]
[1732108971443,0.55,3105.0,3104.3,3.22129]
[1732108971741,3.77068,3105.0,3104.3,3.22129]
[1732108972059,3.22086,3104.8,3103.6,3.22205]
[1732108972216,0.55,3104.7,3104.1,3.22149]
[1732108972420,0.55,3104.7,3103.9,3.22172]
[1732108972631,3.22112,3104.6,3103.9,3.22172]
[1732108972830,3.2212,3104.5,3103.9,3.22172]
[1732108973152,3.22137,3104.3,3103.6,3.22206]
[1732108973509,3.2215,3104.2,3103.6,3.22206]
[1732108973658,3.77125,3104.4,3103.9,3.22173]
[1732108973659,0.37712,3104.3,3103.9,3.22173]
[1732108973832,0.55,3104.4,3103.8,3.22184]
[1732108974027,0.55,3104.5,3104.1,3.22154]
[1732108974229,0.955054,3104.5,3104.1,3.22154]
[1732108974430,0.55,3104.5,3104.1,3.22154]
[1732108974754,0.55,3104.5,3103.9,3.22167]
[1732108974946,0.55,3104.5,3104.0,3.22164]
[1732108975118,0.55,3104.5,3104.1,3.22146]
[1732108975322,0.55,3104.5,3104.2,3.22141]
[1732108975523,0.55,3104.5,3103.5,4.0012]
[1732108975724,0.55,3104.5,3104.0,3.22162]
[1732108975928,0.460053,3104.4,3104.0,3.22162]
[1732108976236,0.460053,3104.4,3104.0,3.22157]
[1732108976431,0.55,3104.3,3103.8,3.22178]
[1732108976635,0.547999,3104.3,3103.8,3.22178]
[1732108976846,0.460053,3104.4,3103.6,3.22206]
[1732108977050,0.8295,3104.6,3103.6,3.22206]
[1732108977051,0.8295,3104.6,3104.1,3.22148]
[1732108977283,6.65422657,3105.0,3103.5,0.7791]
[1732108977284,9.87489657,3105.0,3104.4,3.22123]
[1732108977478,9.87489657,3105.0,3104.2,3.2214]
[1732108977479,3.22067,3105.0,3104.2,3.22136]
[1732108977773,0.98748966,3104.9,3104.3,3.22131]
[1732108977986,4.20821966,3104.9,3104.4,3.22121]
[1732108978267,0.42081597,3104.8,3104.4,3.22121]
[1732108978479,0.42081597,3104.8,3104.0,3.22161]
[1732108978678,0.42081597,3104.8,3103.5,0.7891]
[1732108978679,0.55,3104.5,3103.9,3.22165]
[1732108979028,0.55,3104.8,3104.1,3.22152]
[1732108979265,3.22113,3104.5,3103.5,0.7791]
[1732108979465,3.22162,3104.1,3103.5,3.22214]
[1732108979669,0.872162,3104.0,3103.5,3.22214]
[1732108979856,0.8068,3103.9,3103.4,3.2222]
[1732108980476,0.8068,3103.9,3103.0,0.7713]
[1732108980477,3.22197,3103.7,3103.0,3.99389]
[1732108980629,0.55,3103.7,3103.2,3.22247]
[1732108981684,0.55,3103.4,3102.9,3.2227]
[1732108981827,0.55,3103.5,3103.2,3.22247]
[1732108982169,0.55,3103.7,3103.2,6.44488]
[1732108982378,0.55,3103.7,3103.2,3.22241]
[1732108982379,0.37719,3103.6,3103.2,3.22241]
[1732108982580,0.55,3103.8,3103.4,3.22225]
[1732108982885,0.55,3104.1,3103.3,3.22229]
[1732108983068,0.55,3103.9,3103.2,3.22245]